{"text_format":"1","workbook":"xlsx","n_sheets":2,"sheets":["suma grafica de vectores","trabajo"],"not_rendered":{"charts":2,"images":0,"macros":1,"external_links":0,"defined_names":0,"comments":0,"pivot_tables":0},"unopened":[],"bounds":{"document_bytes":16777216,"sheet_cells":100000,"rows_first":2000,"rows_last":500,"rows_between":2000,"halvings":0,"cell_chars":16384,"cell_head_chars":4096},"cells_cut":0,"cells_raw":0,"read":"whole","date_system":"1900"}

{"sheet":"suma grafica de vectores","index":0,"n_rows":17,"n_cols":3,"rows_kept":17,"cut":false,"hidden":false,"merged":[[0,0,0,14],[1,0,2,1],[2,2,2,14],[1,2,1,14]]}
["Suma de vectores"]
["Instrucciones: ",null,"Escribe los vectores a sumar en las celdas B5:C14 en el oreden acostrumbrado (componente x, componente y)"]
[null,null,"El vector suma aparece en la gráfica de la derecha en color rojo y sus componentes en B17:C17"]
[]
["v1=",2,7]
["v2=",5,7]
["v3=",4,2]
["v4=",3,1]
["v5=",5,-4]
["v6="]
["v7="]
["v8="]
["v9="]
["v10="]
[]
[]
["Suma",{"$f":"trabajo!D13","v":19},{"$f":"trabajo!E13","v":13}]

{"sheet":"trabajo","index":1,"n_rows":20,"n_cols":8,"rows_kept":20,"cut":false,"hidden":true,"merged":[]}
[{"$f":"'suma grafica de vectores'!B5","v":2},{"$f":"'suma grafica de vectores'!C5","v":7},"v1",0,0,null,0,0]
[{"$f":"'suma grafica de vectores'!B6","v":5},{"$f":"'suma grafica de vectores'!C6","v":7},"v2",{"$f":"A1","v":2},{"$f":"B1","v":7},null,{"$f":"A1","v":2},{"$f":"B1","v":7}]
[{"$f":"'suma grafica de vectores'!B7","v":4},{"$f":"'suma grafica de vectores'!C7","v":2},null,{"$f":"A2+D2","v":7},{"$f":"B2+E2","v":14},null,0,0]
[{"$f":"'suma grafica de vectores'!B8","v":3},{"$f":"'suma grafica de vectores'!C8","v":1},null,11,16,null,{"$f":"A2","v":5},{"$f":"B2","v":7}]
[{"$f":"'suma grafica de vectores'!B9","v":5},{"$f":"'suma grafica de vectores'!C9","v":-4},null,14,17,null,0,0]
[{"$f":"'suma grafica de vectores'!B10","v":0},{"$f":"'suma grafica de vectores'!C10","v":0},null,19,13,null,{"$f":"A3","v":4},{"$f":"B3","v":2}]
[{"$f":"'suma grafica de vectores'!B11","v":0},{"$f":"'suma grafica de vectores'!C11","v":0},null,19,13,null,0,0]
[{"$f":"'suma grafica de vectores'!B12","v":0},{"$f":"'suma grafica de vectores'!C12","v":0},null,19,13,null,{"$f":"A4","v":3},{"$f":"B4","v":1}]
[{"$f":"'suma grafica de vectores'!B13","v":0},{"$f":"'suma grafica de vectores'!C13","v":0},null,19,13,null,0,0]
[{"$f":"'suma grafica de vectores'!B14","v":0},{"$f":"'suma grafica de vectores'!C14","v":0},null,19,13,null,{"$f":"A5","v":5},{"$f":"B5","v":-4}]
[null,null,null,19,13,null,0,0]
[null,null,null,0,0,null,{"$f":"A6","v":0},{"$f":"B6","v":0}]
[null,null,null,{"$f":"D11","v":19},{"$f":"E11","v":13},null,0,0]
[null,null,null,null,null,null,{"$f":"A7","v":0},{"$f":"B7","v":0}]
[null,null,null,null,null,null,0,0]
[null,null,null,null,null,null,{"$f":"A8","v":0},{"$f":"B8","v":0}]
[null,null,null,null,null,null,0,0]
[null,null,null,null,null,null,{"$f":"A9","v":0},{"$f":"B9","v":0}]
[null,null,null,null,null,null,0,0]
[null,null,null,null,null,null,{"$f":"A10","v":0},{"$f":"B10","v":0}]